Cogmind - Beta 14 @@@ ROGUE MODE // 2024.11.09 @ 04:03:30 Player: Hinzy Result: Destroyed by Y-45 Defender with Heavy Assault Rifle Performance ------------- Evolutions (1) 500 Regions Visited (2) 400 Robots Destroyed (12) 60 Value Destroyed (345) 345 Prototype IDs (0) 0 Alien Tech Used (0) 0 Bonus (0) 0 TOTAL SCORE: 1305 Bonus ------- None Cogmind --------- Core Integrity 0/400 Matter 300/300 Energy 100/100 System Corruption 0% Temperature Cool (6) Movement Walking (120) Location -9/Materials Parts ------- > --- POWER (1) -------- (None) > --- PROPULSION (3) --- Aluminum Leg > --- UTILITY (3) ------ Small Storage Unit Terrain Scan Processor > --- WEAPON (2) ------- (None) > --- INVENTORY (8) ---- Terrain Scanner Melee Analysis Suite Peak State ------------ > --- POWER ------------ Light Ion Engine > --- PROPULSION ------- Aluminum Leg Aluminum Leg Improved Aluminum Leg > --- UTILITY ---------- Small Storage Unit Terrain Scanner Terrain Scan Processor > --- WEAPON ----------- Particle Gun Assault Rifle > --- INVENTORY -------- Ion Engine Light Treads Light Treads Cooling System Melee Analysis Suite Light Armor Plating Hammer [Rating: 13] Favorites ----------- Power Light Ion Engine Engine Light Ion Engine Propulsion Aluminum Leg Treads Light Treads Leg Aluminum Leg Utility Small Storage Unit Device Terrain Scanner Storage Small Storage Unit Processor Terrain Scan Processor Protection Light Armor Plating Weapon Assault Rifle Energy Gun EM Pulse Gun Ballistic Gun Assault Rifle Impact Weapon Hammer Build | -11 -10 -9 ------- Run | Yrd Mat Mat Slots Evolved 2 | . . 2 Power . | . . . Propulsion 1 | . . 1 Utility 1 | . . 1 Weapon . | . . . Parts Attached 32 | 9 3 20 Power 7 | 2 2 3 Engine 7 | 2 2 3 Core . | . . . Reactor . | . . . Propulsion 11 | 4 . 7 Treads 4 | 2 . 2 Leg 7 | 2 . 5 Wheel . | . . . Hover . | . . . Flight . | . . . Utility 7 | 1 1 5 Device 3 | . . 3 Storage 1 | 1 . . Processor 1 | . . 1 Hackware . | . . . Protection 2 | . 1 1 Artifact . | . . . Weapon 7 | 2 . 5 Energy Gun 4 | 1 . 3 Energy Cannon . | . . . Ballistic Gun 2 | 1 . 1 Ballistic Cannon . | . . . Launcher . | . . . Special Weapon . | . . . Impact Weapon 1 | . . 1 Slashing Weapon . | . . . Piercing Weapon . | . . . Special Melee Weapon . | . . . Unidentified Prototypes . | . . . Parts Lost 13 | . . 13 Power 3 | . . 3 Propulsion 4 | . . 4 Utility 2 | . . 2 Weapon 4 | . . 4 Highest Loss Streak 10 | . . 10 To Critical Strikes . | . . . Average Slot Usage (%) 85 | . 98 80 Engine 10 | . 14 9 Treads 3 | . . 4 Leg 21 | . 28 19 Device 4 | . . 6 Storage 11 | . 14 11 Processor 5 | . . 7 Protection 5 | . 12 3 Energy Gun 10 | . 14 9 Ballistic Gun 8 | . 14 6 Impact Weapon 1 | . . 2 Peak Build Rating 13 | 6 7 13 Average Rating 7 | 4 6 8 On Entrance 4 | . 6 7 Naked Turns . | . . . Heaviest Build 17 | 14 15 17 Greatest Support 40 | 40 20 33 Greatest Overweight (x) 4 | . . 4 Average Overweight (x) . | . . . Largest Inventory Capacity 8 | 8 8 8 Average Capacity 7 | 7 8 8 Most Carried 8 | 3 8 8 Average Carried 5 | 1 6 6 Final Capacity 8 | 8 8 8 Final Carried 8 | 3 8 2 Class Distribution -------------------- 86% | Mutant 13% | Scavenger-Mutant Dominant Class ---------------- Mutant | -10/Materials Mutant | -9/Materials Resources | -11 -10 -9 ----------- Run | Yrd Mat Mat Matter Collected 495 | 114 20 361 Remotely . | . . . Salvage Created 490 | . 20 470 Parts 21 | . 1 20 Haulers Intercepted . | . . . Recyclers Shooed . | . . . Parts Field Recycled . | . . . Retrieved Matter . | . . . Parts Self-Destructed . | . . . Prevented . | . . . Kills | -11 -10 -9 ------- Run | Yrd Mat Mat Combat Hostiles Destroyed 9 | . 1 8 Melee 2 | . . 2 Guns 5 | . 1 4 Classes Destroyed 6 | . 1 5 Builder 1 | . . 1 Recycler 1 | . . 1 Watcher 1 | . . 1 Swarmer 1 | . 1 . Grunt 7 | . . 7 Duelist 1 | . . 1 Best Kill Streak 4 | . 1 4 Combat Bots Only 1 | . 1 1 Max Kills in Single Turn 2 | . 1 2 Gunslinging . | . . . Exploded . | . . . Melee 1 | . . 1 Uniques/NPCs Destroyed . | . . . Combat | -11 -10 -9 -------- Run | Yrd Mat Mat Hostile Shots Fired 197 | . 5 192 Missed 51 | . 1 50 Damage Taken 1837 | . 32 1805 Core 411 | . . 411 Absorbed by Shields . | . . . Core Remaining (%) 100 | 100 100 . Volleys Fired 67 | . 3 64 Largest 2 | . 2 2 Hottest 85 | . 60 85 Shots Fired 87 | . 6 81 Gun 87 | . 6 81 Cannon . | . . . Launcher . | . . . Special . | . . . Kinetic 21 | . 3 18 Thermal 25 | . . 25 Explosive . | . . . Electromagnetic 41 | . 3 38 Robot Hit Streak 9 | . 1 9 Robot Miss Streak 6 | . 1 6 Penetration Max . | . . . Secondary Targets . | . . . Shots Hit Robots 61 | . 3 58 Core Hits 23 | . 1 22 Critical Kills . | . . . Critical Parts Destroyed 2 | . . 2 Critical Strikes 2 | . . 2 Smash 2 | . . 2 Melee Attacks 18 | . . 18 Impact 18 | . . 18 Slashing . | . . . Piercing . | . . . Sneak Attacks . | . . . Combat Hostiles . | . . . Follow-up Attacks . | . . . Damage Inflicted 1104 | . 35 1069 Guns 717 | . 34 683 Cannons . | . . . Explosions 95 | . . 95 Melee 276 | . . 276 Ramming 16 | . 1 15 Kinetic 155 | . . 155 Thermal 332 | . . 332 Explosive . | . . . Electromagnetic 325 | . 34 291 Impact 276 | . . 276 Slashing . | . . . Piercing . | . . . Highest Corruption . | . . . Average Corruption . | . . . Corruption Purged . | . . . Corruption Blocked . | . . . Overload Shots . | . . . Overflow Damage 84 | . . 84 Projectiles . | . . . Explosions 5 | . . 5 Melee 79 | . . 79 Knockbacks 1 | . . 1 Impact 1 | . . 1 Kinetic . | . . . Secondary . | . . . Self-Inflicted Damage 3 | . . 3 Shots . | . . . Rammed 3 | . . 3 Targets Rammed 10 | . 1 9 Kicked 7 | . 1 6 Crushed . | . . . Highest Temperature 168 | . 27 168 Average Temperature 34 | . 14 37 Received Heat Transfer 969 | . . 969 Siege Activations . | . . . Robots Corrupted 3 | . . 3 Combat Hostiles 2 | . . 2 Parts Fried 3 | . . 3 Impact Corruptions 4 | . . 4 Robots Melted . | . . . Combat Hostiles . | . . . Parts Melted . | . . . Heat Transferred 719 | . . 719 Parts Sabotaged . | . . . Parts Stolen . | . . . Parts Stripped . | . . . Power Chain Reactions 1 | . . 1 Alert | -11 -10 -9 ------- Run | Yrd Mat Mat Peak Influence 243 | . 54 243 Initial 22 | . . 22 Average 74 | . 14 110 Maximum Alert Level 1 | . . 1 Low Security (%) 90 | 100 100 85 Level 1 9 | . . 14 Level 2 . | . . . Level 3 . | . . . Level 4 . | . . . Level 5 . | . . . High Security . | . . . Max Security . | . . . Squads Dispatched 1 | . . 1 Investigation . | . . . Extermination . | . . . Reinforcement 1 | . . 1 Assault . | . . . Garrison . | . . . Intercept . | . . . Searches Triggered . | . . . Construction Impeded . | . . . Haulers Reinforced . | . . . Active Scanning Responses . | . . . Cargo Convoy Interrupts . | . . . Stealth | -11 -10 -9 --------- Run | Yrd Mat Mat Distress Signals 1 | . . 1 Communications Jammed . | . . . Distress Signals . | . . . Times Spotted 20 | . 3 17 Peak Tracking Total 6 | . 4 6 Tactical Retreats 2 | . 1 1 Traps | -11 -10 -9 ------- Run | Yrd Mat Mat Traps Triggered . | . . . Indirectly . | . . . Trap Hack Attempts . | . . . Triggered . | . . . Disarmed . | . . . Reprogrammed . | . . . Reused . | . . . Traps Extracted . | . . . Installed . | . . . Triggered . | . . . Machines | -11 -10 -9 ---------- Run | Yrd Mat Mat Machines Disabled 1 | . . 1 Max in Single Turn 1 | . . 1 Machines Repaired . | . . . Machines Dismantled . | . . . Machines Sabotaged . | . . . Overloaded Fab Kills . | . . . Hacking | -11 -10 -9 --------- Run | Yrd Mat Mat Machines Accessed 2 | . 1 1 Terminals 2 | . 1 1 Fabricators . | . . . Repair Stations . | . . . Recycling Units . | . . . Scanalyzers . | . . . Garrison Access . | . . . Total Hacks 5 | . 2 3 Successful 3 | . 2 1 Failed 2 | . . 2 Catastrophic . | . . . Database Lockouts . | . . . Manual . | . . . Terminals 5 | . 2 3 Fabricators . | . . . Repair Stations . | . . . Recycling Units . | . . . Scanalyzers . | . . . Garrison Access . | . . . Terminal Hacks 3 | . 2 1 Record 1 | . . 1 Alert Level 1 | . 1 . Dispatch Records 1 | . 1 . Fabricator Hacks . | . . . Repair Station Hacks . | . . . Recycling Unit Hacks . | . . . Scanalyzer . | . . . Garrison Access Hacks . | . . . Unauthorized Hacks . | . . . Terminals . | . . . Fabricators . | . . . Repair Stations . | . . . Recycling Units . | . . . Scanalyzers . | . . . Garrison Access . | . . . Data Cores Recovered . | . . . Used . | . . . Hacking Detections 2 | . 1 1 Full Trace Events . | . . . Feedback Events . | . . . Feedback Blocked . | . . . Robot Schematics Acquired . | . . . Robots Built . | . . . Authchips . | . . . Time . | . . . Total Robot Build Rating . | . . . Part Schematics Acquired . | . . . Parts Built . | . . . Authchips . | . . . Time . | . . . Total Part Build Rating . | . . . Parts Repaired . | . . . Time . | . . . Parts Recycled . | . . . Recycled Matter . | . . . Retrieved Matter . | . . . Retrieved Components . | . . . Parts Scanalyzed . | . . . Part Schematics Acquired . | . . . Parts Damaged . | . . . Bothacking | -11 -10 -9 ------------ Run | Yrd Mat Mat Used RIF Installer . | . . . Robots Hacked . | . . . Non-combat . | . . . Combat . | . . . Robot Hacks Applied . | . . . Relay Couplers Released . | . . . Fabnet Peak Effective % . | . . . Robots Rewired . | . . . Allies Hacked . | . . . Hacks Repelled . | . . . Allies | -11 -10 -9 -------- Run | Yrd Mat Mat Total Allies . | . . . Largest Group . | . . . Highest-Rated Group . | . . . Highest-Rated Ally . | . . . Total Orders . | . . . Ally Attacks . | . . . Total Damage . | . . . Kills . | . . . Allies Corrupted . | . . . Allies Melted . | . . . Intel | -11 -10 -9 ------- Run | Yrd Mat Mat Robot Analysis Total . | . . . Derelict Logs Recovered . | . . . Drone Launches . | . . . Drone Recoveries . | . . . Exploration | -11 -10 -9 ------------- Run | Yrd Mat Mat Turns Passed 683 | 80 161 442 Spaces Moved 315 | 47 117 151 Core 5 | 2 . 3 Treads 32 | 23 . 9 Legs 278 | 22 117 139 Wheels . | . . . Hover . | . . . Flight . | . . . Fastest Speed 50 | 50 120 100 Average Speed 124 | 136 120 123 Slowest Speed 250 | 160 120 250 Overloaded Moves . | . . . Propulsion Burnouts . | . . . Robots Hopped . | . . . Cave-ins Triggered . | . . . Exploration Rate (%) 15 | 4 21 20 Regions Visited 2 Branch Regions . Pre-discovered Areas . | . . . Known Exits Taken . | . . . Unknown Exits Taken 2 | 1 1 . Scrap Searched . | . . . Spaces Dug . | . . . Terrain Destroyed 5 | . . 5 Melee . | . . . Projectile . | . . . AOE 5 | . . 5 Terrain Rammed . | . . . Walls Destroyed . | . . . Machines Disabled . | . . . Actions | -11 -10 -9 --------- Run | Yrd Mat Mat Total 486 | 58 132 296 Wait 16 | 1 2 13 Move 313 | 46 116 151 Hop . | . . . Pick Up 11 | 2 5 4 Fast Attach 16 | 6 1 9 Attach 10 | . 1 9 Detach 6 | . 1 5 Swap 6 | 3 1 2 Drop 13 | . 1 12 Fire 67 | . 3 64 Melee 18 | . . 18 Ram 3 | . . 3 Kick 7 | . 1 6 Crush . | . . . Escape Stasis . | . . . Rewire . | . . . Trap . | . . . Miscellaneous . | . . . Route ------- -11/Scrapyard -10/Materials -9/Materials History --------- Turn | Location | Event 17 | -11/Scrapyard | Discovered new exit (range 16) 81 | -11/Scrapyard | Entered Materials 208 | -10/Materials | Discovered new exit (range 12) 242 | -10/Materials | Entered another Materials area 242 | -9/Materials | Evolved 2 slots: Propulsion x1, Utility x1 302 | -9/Materials | Build established: Mutant 623 | -9/Materials | Core integrity fell below 50% 645 | -9/Materials | Core integrity fell below 20% 670 | -9/Materials | Lost 10 parts (1p4n2u3w) 684 | -9/Materials | Destroyed by Y-45 Defender with Heavy Assault Rifle Last Messages --------------- 00622_ Slammed into G-34 Mercenary. 00623_ G-34 Mercenary destroyed. [Achievement: Fist Fight] 00624_ Acquired 46 matter. 00625_ Acquired Aluminum Leg. 00625_ K-01 Serf collects debris. 00628_ Acquired Aluminum Leg. 00631_ K-01 Serf collects debris. 00631_ Acquired Sml. Laser. 00633_ K-01 Serf destroyed. 00635_ Acquired Lgt. Ion Engine. 00639_ Aluminum Leg destroyed. 00673_ Lgt. Ion Engine destroyed. 00676_ Sml. Laser destroyed. 00676_ Kicked G-34 Mercenary. 00679_ G-34 Mercenary destroyed. 00680_ Acquired 20 matter. 00680_ Kicked G-34 Mercenary. 00681_ Kicked G-34 Mercenary out of the way. 00684_ Kicked G-34 Mercenary. Map ----- +----------------------------------------------------+ | ?#?? ? ? ?? ????????????????????????????????????? | | ??#? ? ??? ##??????????????????????????????????? | | #??? ?? ? ##??????????????????????????????????? | | ??## ? ?? ? #?#??#?#????????????????????????????? | | + ??! ##???#??????????????????????????????? | | #### =! ?####??#????????????????????????????? | | / ##?#??#?????????????????????????????? | | #### ?#?##?#?????????????????????????????? | | #############?######?????????????????????????????? | | =[!= [ #?#?##?????#?????????????????????????? | | * ###??##?##???????????????????????????? | | * # ?#?????????????????????????????? | | """"" # """? ?????????????????????????????? | | """ =! #???"????????????????????????????????? | | %*%[ # ???#???????????????????????????? | | === # ?? ????#??????????????????????????? | | #+#/#####+###?""???##????????????????????????????? | | ##### ### ?"?? ??????????????????????????????? | | ? ### % +?"?"??#########?????????????????????? | | #?# # ??? #! #?????????????????????? | | ? ??# # """ ?# ""#?????????????????????? | | ??# + """ ?# ""#?????????????????????? | | ### # """ ?# T"#?????????????????????? | | ### ! # ? ??# ""#?????????????????????? | | =% ######## ""#?????????????????????? | | =! # @ #?????????????????????? | | "" # g=%#?????????????????????? | | "" % + g %!#?????????????????????? | | "" # """"" #?????????????????????? | | # """"" #?????????????????????? | | ##########+##+# """"" #?????????????????????? | | "" #??????????????# """""Y#?????????????????????? | | "" ???????????????# """"" #?????????????????????? | | "" ????????????????# """"" #?????????????????????? | | ????????????????# """"" #?????????????????????? | | ?????????????????# ? #?????????????????????? | | ???????????????????###??# ##?????????????????????? | | ????????????????????????##???????????????????????? | | ?????????????????????????????????????????????????? | | ?????????????????????????????????????????????????? | | ?????????????????????????????????????????????????? | | ?????????????????????????????????????????????????? | | ?????????????????????????????????????????????????? | | ?????????????????????????????????????????????????? | | ?????????????????????????????????????????????????? | | ?????????????????????????????????????????????????? | | | | | | | | | +----------------------------------------------------+ Best States ------------- Heat Dissipation 50 Energy Generation 10 Energy Capacity 250 Matter Stores 280 Matter Capacity 300 Sight Range 16 Terrain Scan Range 14 Terrain Scan Density 85 Armor Coverage 150 Evasion (%) 55 Recoil Reduction 2 Item Schematics ----------------- None Robot Schematics ------------------ None Fabricated ------------ Nothing Alien Tech Used ----------------- None Achievements -------------- Fist Fight Challenges ------------ None Game ------ Seed GammaSupercompositeMace Manual? 0 Play Time 00:21:49 Cumulative 6.2 hours Start 2024.11.09 @ 03:44:04 End 2024.11.09 @ 04:03:30 Sessions 1 Manual Loads 0 Difficulty Rogue Special Mode None Game No. 5 Rogue 5 Adventurer 0 Explorer 0 Win Type - Total 0 Types 0/0/0/0/0/0/0/0/0 Lore% 6 Gallery% 9 Achievement% 8 Wizard Run 0 Options --------- Layout 1 ASCII 0 Keyboard 1 Movement Numpad Keybinds 0 Fullscreen 1 Font 24/Proggy Map View 50x35 Zoom Use 0% Tactical HUD 1 Map Filters NONE Filters NONE Steam 1 RUN: c06ebd19-9966-4814-a831-249697457644